fUST/lending_fUST_20260608
["ID","MTS","AMOUNT","RATE_DAILY","PERIOD"]
[424412028,1780852246000,-500.0,0.00019178,2]
[424412022,1780852246000,-500.0,0.00019178,2]
[424412027,1780852246000,-500.0,0.00019178,2]
[424412026,1780852246000,-1905.48,0.00019178,2]
[424412010,1780852246000,-738.61,0.00019178,2]
[424412017,1780852246000,-407.34009264,0.00019178,2]
[424412009,1780852246000,-575.61,0.00019178,2]
[424412002,1780852246000,-500.0,0.00019178,2]
[424412014,1780852246000,-1647.53,0.00019178,2]
[424412007,1780852246000,-500.0,0.00019178,2]
[424412016,1780852246000,-92.65990736,0.00019178,2]
[424412006,1780852246000,-503.47,0.00019178,2]
[424412008,1780852246000,-500.0,0.00019178,2]
[424412005,1780852246000,-500.0,0.00019178,2]
[424412001,1780852246000,-500.0,0.00019178,2]
[424412000,1780852246000,-500.0,0.00019178,2]
[424412004,1780852246000,-500.0,0.00019178,2]
[424411998,1780852246000,-403.6367491,0.00019178,2]
[424411999,1780852246000,-500.0,0.00019178,2]
[424411997,1780852246000,-296.22898066,0.00019178,2]
[424412003,1780852246000,-500.0,0.00019178,2]
[424412021,1780852246000,-1170.45,0.00019178,2]
[424412013,1780852246000,-2052.67,0.00019178,2]
[424412023,1780852246000,-500.0,0.00019178,2]
[424412043,1780852246000,-500.0,0.00019178,2]
[424412030,1780852246000,-500.0,0.00019178,2]
[424412025,1780852246000,-1766.53,0.00019178,2]
[424412056,1780852246000,-500.0,0.00019178,2]
[424412059,1780852246000,-177.83506311,0.00019178,2]
[424412057,1780852246000,-500.0,0.00019178,2]
[424412046,1780852246000,-518.11,0.00019178,2]
[424412045,1780852246000,-542.72,0.00019178,2]
[424412047,1780852246000,-835.35,0.00019178,2]
[424412044,1780852246000,-500.0,0.00019178,2]
[424412054,1780852246000,-500.0,0.00019178,2]
[424412055,1780852246000,-833.06,0.00019178,2]
[424412053,1780852246000,-500.0,0.00019178,2]
[424412051,1780852246000,-961.43,0.00019178,2]
[424412052,1780852246000,-545.13,0.00019178,2]
[424412050,1780852246000,-752.99,0.00019178,2]
[424412058,1780852246000,-1456.69,0.00019178,2]
[424412048,1780852246000,-151.0,0.00019178,2]
[424412040,1780852246000,-562.03,0.00019178,2]
[424412049,1780852246000,-500.0,0.00019178,2]
[424412031,1780852246000,-500.0,0.00019178,2]
[424412029,1780852246000,-1110.83,0.00019178,2]
[424412042,1780852246000,-500.0,0.00019178,2]
[424412041,1780852246000,-500.0,0.00019178,2]
[424412032,1780852246000,-500.0,0.00019178,2]
[424412033,1780852246000,-500.0,0.00019178,2]
[424412037,1780852246000,-500.0,0.00019178,2]
[424412039,1780852246000,-500.0,0.00019178,2]
[424412036,1780852246000,-500.0,0.00019178,2]
[424412038,1780852246000,-500.0,0.00019178,2]
[424412035,1780852246000,-500.0,0.00019178,2]
[424412034,1780852246000,-699.76,0.00019178,2]
[424412063,1780852247000,-500.0,0.00019178,2]
[424412082,1780852247000,-500.0,0.00019178,2]
[424412080,1780852247000,-500.0,0.00019178,2]
[424412070,1780852247000,-500.0,0.00019178,2]
[424412061,1780852247000,-500.0,0.00019178,2]
[424412068,1780852247000,-500.0,0.00019178,2]
[424412060,1780852247000,-500.55,0.00019178,2]
[424412067,1780852247000,-500.0,0.00019178,2]
[424412065,1780852247000,-1231.01,0.00019178,2]
[424412064,1780852247000,-949.76,0.00019178,2]
[424412062,1780852247000,-500.0,0.00019178,2]
[424412071,1780852247000,-1104.35,0.00019178,2]
[424412066,1780852247000,-528.42042034,0.00019178,2]
[424412072,1780852247000,-500.0,0.00019178,2]
[424412081,1780852247000,-2443.45,0.00019178,2]
[424412073,1780852247000,-500.0,0.00019178,2]
[424412089,1780852247000,-112.22010056,0.00019178,2]
[424412087,1780852247000,-500.0,0.00019178,2]
[424412088,1780852247000,-500.0,0.00019178,2]
[424412086,1780852247000,-500.0,0.00019178,2]
[424412085,1780852247000,-500.0,0.00019178,2]
[424412084,1780852247000,-1358.32,0.00019178,2]
[424412083,1780852247000,-500.0,0.00019178,2]
[424412077,1780852247000,-806.14,0.00019178,2]
[424412079,1780852247000,-500.0,0.00019178,2]
[424412078,1780852247000,-250.65992348,0.00019178,2]
[424412074,1780852247000,-500.0,0.00019178,2]
[424412076,1780852247000,-300.0,0.00019178,2]
[424412075,1780852247000,-500.0,0.00019178,2]
[424412069,1780852247000,-1949.08,0.00019178,2]
[424412157,1780853237000,-231.38559412,0.00013197,2]
[424412158,1780853252000,-893.41798316,0.00013197,2]
[424412191,1780853352000,-615.40426625,0.00013065,2]
[424412192,1780853352000,-851.79535907,0.00013197,2]
[424412193,1780853360000,-2805.71649879,0.00013197,2]
[424412313,1780853438000,-668.35578668,0.00018968,2]
[424412319,1780853438000,-668.35578668,0.00018968,2]
[424412317,1780853438000,-668.35578668,0.00018968,2]
[424412315,1780853438000,-668.35578668,0.00018968,2]
[424412329,1780853438000,-668.35578668,0.00018968,2]
[424412323,1780853438000,-668.35578668,0.00018968,2]
[424412348,1780853438000,-921.37,0.00019178,2]
[424412321,1780853438000,-668.35578668,0.00018968,2]
[424412327,1780853438000,-668.35578668,0.00018968,2]
[424412325,1780853438000,-668.35578668,0.00018968,2]
[424412331,1780853438000,-668.35578668,0.00018968,2]
[424412333,1780853438000,-668.35578668,0.00018968,2]
[424412335,1780853438000,-231.036,0.0001904,2]
[424412311,1780853438000,-668.35578668,0.00018968,2]
[424412309,1780853438000,-668.35578668,0.00018968,2]
[424412272,1780853438000,-553.04070053,0.00013064,2]
[424412305,1780853438000,-290.8,0.0001863,2]
[424412293,1780853438000,-417.3969888,0.00015,2]
[424412307,1780853438000,-290.8,0.00018904,2]
[424412301,1780853438000,-171.23525025,0.00018414,2]
[424412299,1780853438000,-186.0,0.00017742,2]
[424412303,1780853438000,-164.68510032,0.00018414,2]
[424412297,1780853438000,-160.0,0.00017442,2]
[424412291,1780853438000,-342.49979274,0.00013065,2]
[424412276,1780853438000,-1197.95937301,0.00013065,2]
[424412274,1780853438000,-3459.54083425,0.00013065,2]
[424412266,1780853438000,-189.70014775,0.00013064,2]
[424412264,1780853438000,-500.0,0.00013064,2]
[424412270,1780853438000,-500.0,0.00013064,2]
[424412268,1780853438000,-500.0,0.00013064,2]
[424412295,1780853438000,-152.0,0.00016622,7]
[424412337,1780853438000,-293.06704954,0.00019066,2]
[424412343,1780853438000,-1892.1554,0.00019178,2]
[424412352,1780853438000,-500.0,0.00019178,2]
[424412399,1780853438000,-387.66024773,0.00019178,2]
[424412401,1780853438000,-500.0,0.00019178,2]
[424412403,1780853438000,-591.65,0.00019178,2]
[424412397,1780853438000,-558.77,0.00019178,2]
[424412395,1780853438000,-718.53,0.00019178,2]
[424412393,1780853438000,-500.0,0.00019178,2]
[424412391,1780853438000,-1301.73,0.00019178,2]
[424412389,1780853438000,-998.03,0.00019178,2]
[424412384,1780853438000,-760.5,0.00019178,2]
[424412387,1780853438000,-500.0,0.00019178,2]
[424412372,1780853438000,-500.0,0.00019178,2]
[424412368,1780853438000,-241.6747946,0.00019178,2]
[424412385,1780853438000,-500.0,0.00019178,2]
[424412382,1780853438000,-486.18622551,0.00019178,2]
[424412370,1780853438000,-500.0,0.00019178,2]
[424412354,1780853438000,-500.0,0.00019178,2]
[424412378,1780853438000,-772.55,0.00019178,2]
[424412350,1780853438000,-500.0,0.00019178,2]
[424412339,1780853438000,-151.0,0.00019067,2]
[424412344,1780853438000,-614.9736,0.00019178,2]
[424412358,1780853438000,-522.42,0.00019178,2]
[424412356,1780853438000,-500.0,0.00019178,2]
[424412346,1780853438000,-500.0,0.00019178,2]
[424412341,1780853438000,-407.658691,0.00019076,2]
[424412380,1780853438000,-500.0,0.00019178,2]
[424412361,1780853438000,-500.0,0.00019178,2]
[424412374,1780853438000,-500.0,0.00019178,2]
[424412376,1780853438000,-500.0,0.00019178,2]
[424412366,1780853438000,-500.0,0.00019178,2]
[424412362,1780853438000,-583.91526967,0.00019178,2]
[424412364,1780853438000,-500.0,0.00019178,2]
[424412359,1780853438000,-1179.72,0.00019178,2]
[424412441,1780853439000,-527.45,0.00019178,2]
[424412443,1780853439000,-794.93,0.00019178,2]
[424412445,1780853439000,-500.0,0.00019178,2]
[424412455,1780853439000,-500.0,0.00019178,2]
[424412457,1780853439000,-500.0,0.00019178,2]
[424412462,1780853439000,-500.0,0.00019178,2]
[424412461,1780853439000,-500.0,0.00019178,2]
[424412439,1780853439000,-500.0,0.00019178,2]
[424412464,1780853439000,-1243.86,0.00019178,2]
[424412449,1780853439000,-500.0,0.00019178,2]
[424412453,1780853439000,-1677.95,0.00019178,2]
[424412451,1780853439000,-500.0,0.00019178,2]
[424412459,1780853439000,-513.27932579,0.00019178,2]
[424412425,1780853439000,-500.0,0.00019178,2]
[424412423,1780853439000,-500.0,0.00019178,2]
[424412427,1780853439000,-500.0,0.00019178,2]
[424412421,1780853439000,-539.66,0.00019178,2]
[424412417,1780853439000,-762.45,0.00019178,2]
[424412430,1780853439000,-500.0,0.00019178,2]
[424412436,1780853439000,-457.33224696,0.00019178,2]
[424412447,1780853439000,-500.0,0.00019178,2]
[424412432,1780853439000,-500.0,0.00019178,2]
[424412428,1780853439000,-500.0,0.00019178,2]
[424412415,1780853439000,-500.0,0.00019178,2]
[424412413,1780853439000,-500.0,0.00019178,2]
[424412409,1780853439000,-500.0,0.00019178,2]
[424412407,1780853439000,-658.12,0.00019178,2]
[424412405,1780853439000,-1000.0,0.00019178,2]
[424412411,1780853439000,-1740.35,0.00019178,2]
[424412419,1780853439000,-500.0,0.00019178,2]
[424412434,1780853439000,-500.0,0.00019178,2]
[424412468,1780853439000,-740.39,0.00019178,2]
[424412470,1780853439000,-721.62,0.00019178,2]
[424412509,1780853439000,-360.03053011,0.00019178,2]
[424412507,1780853439000,-500.0,0.00019178,2]
[424412505,1780853439000,-1011.6,0.00019178,2]
[424412501,1780853439000,-500.0,0.00019178,2]
[424412499,1780853439000,-500.0,0.00019178,2]
[424412498,1780853439000,-642.95,0.00019178,2]
[424412496,1780853439000,-500.0,0.00019178,2]
[424412466,1780853439000,-586.06,0.00019178,2]
[424412500,1780853439000,-1867.87,0.00019178,2]
[424412503,1780853439000,-500.0,0.00019178,2]
[424412502,1780853439000,-346.36488177,0.00019178,2]
[424412504,1780853439000,-567.4,0.00019178,2]
[424412494,1780853439000,-1058.33,0.00019178,2]
[424412495,1780853439000,-500.0,0.00019178,2]
[424412493,1780853439000,-500.0,0.00019178,2]
[424412497,1780853439000,-500.0,0.00019178,2]
[424412492,1780853439000,-910.19,0.00019178,2]
[424412491,1780853439000,-324.20412064,0.00019178,2]
[424412472,1780853439000,-500.0,0.00019178,2]
[424412474,1780853439000,-1850.07,0.00019178,2]
[424412480,1780853439000,-643.09,0.00019178,2]
[424412482,1780853439000,-523.20559186,0.00019178,2]
[424412476,1780853439000,-500.0,0.00019178,2]
[424412484,1780853439000,-500.0,0.00019178,2]
[424412485,1780853439000,-500.0,0.00019178,2]
[424412486,1780853439000,-1395.99,0.00019178,2]
[424412488,1780853439000,-500.0,0.00019178,2]
[424412478,1780853439000,-798.35,0.00019178,2]
[424412489,1780853439000,-500.0,0.00019178,2]
[424412490,1780853439000,-500.0,0.00019178,2]
[424412487,1780853439000,-500.0,0.00019178,2]
[424412647,1780853443000,-147.22600256,0.00012933,2]
[424412662,1780853446000,-1580.26295365,0.00019178,2]
[424412654,1780853446000,-4852.77399744,0.00012933,2]
[424412655,1780853446000,-668.35578668,0.00018968,2]
[424412657,1780853446000,-242.31946989,0.00019178,2]
[424412661,1780853446000,-500.0,0.00019178,2]
[424412658,1780853446000,-500.0,0.00019178,2]
[424412660,1780853446000,-2341.64,0.00019178,2]
[424412659,1780853446000,-500.0,0.00019178,2]
[424412656,1780853446000,-668.35578668,0.00018968,2]
[424412663,1780853543000,2362.97601917,0.0001759,2]
[424412675,1780854428000,-2356.74888902,0.00015548,2]
[424412676,1780854431000,-406.81266773,0.00015548,2]
[424412677,1780854449000,-1730.64210656,0.00015548,2]
[424412693,1780854632000,-500.0,0.00015086,2]
[424412694,1780854632000,-1490.81803,0.00015087,2]
[424412695,1780854632000,-317.005,0.00015087,2]
[424412697,1780854632000,-2207.68829697,0.00015239,2]
[424412698,1780854632000,-909.838,0.00015239,2]
[424412696,1780854632000,-3192.17697,0.00015087,2]
[424412722,1780854638000,-568.10241868,0.00015392,2]
[424412721,1780854638000,-568.10241868,0.00015392,2]
[424412719,1780854638000,-358.30900551,0.00015392,2]
[424412720,1780854638000,-568.10241868,0.00015392,2]
[424412727,1780854638000,-568.10241868,0.00015392,2]
[424412716,1780854638000,-568.10241868,0.00015392,2]
[424412718,1780854638000,-209.79341317,0.00015392,2]
[424412717,1780854638000,-568.10241868,0.00015392,2]
[424412715,1780854638000,-568.10241868,0.00015392,2]
[424412712,1780854638000,-568.10241868,0.00015392,2]
[424412713,1780854638000,-568.10241868,0.00015392,2]
[424412714,1780854638000,-568.10241868,0.00015392,2]
[424412711,1780854638000,-1088.77597276,0.00015239,2]
[424412710,1780854638000,-380.44000851,0.00014115,14]
[424412723,1780854638000,-568.10241868,0.00015392,2]
[424412724,1780854638000,-568.10241868,0.00015392,2]
[424412726,1780854638000,-568.10241868,0.00015392,2]
[424412729,1780854638000,-568.10241868,0.00015392,2]
[424412743,1780854638000,-252.03,0.0001863,2]
[424412736,1780854638000,-166.55233981,0.00017308,2]
[424412734,1780854638000,-282.12520733,0.00017308,2]
[424412738,1780854638000,-160.0,0.00017437,2]
[424412737,1780854638000,-299.49441745,0.00017308,2]
[424412731,1780854638000,-5000.0,0.00015393,2]
[424412735,1780854638000,-440.37981581,0.00017308,2]
[424412732,1780854638000,-152.0,0.00016624,7]
[424412733,1780854638000,-246.85955641,0.00017308,2]
[424412742,1780854638000,-153.70609363,0.00018417,2]
[424412730,1780854638000,-568.10241868,0.00015392,2]
[424412728,1780854638000,-568.10241868,0.00015392,2]
[424412741,1780854638000,-154.11172523,0.00018417,2]
[424412739,1780854638000,-186.0,0.000179,2]
[424412740,1780854638000,-152.0,0.00018127,2]
[424412725,1780854638000,-568.10241868,0.00015392,2]
[424412744,1780854639000,-184.829,0.00018757,2]
[424412746,1780854639000,-11319.35091185,0.00018778,2]
[424412745,1780854639000,-339.715575,0.00018757,2]
[424412912,1780854643000,-1329.07474658,0.00018778,2]
[424412910,1780854643000,-443.0,0.00018778,2]
[424412911,1780854643000,-1187.9074485,0.00018778,2]
[424412909,1780854643000,-565.45,0.00018778,2]
[424412908,1780854643000,-317.989,0.00018778,2]
[424412907,1780854643000,-30488.92479919,0.00018778,2]
[424412906,1780854643000,-5000.0,0.0001859,2]
[424412919,1780854646000,-20357.86922315,0.00018778,2]
[424412922,1780854646000,-117.01160794,0.00018867,2]
[424412920,1780854646000,-151.0,0.00018867,2]
[424412921,1780854646000,-151.0,0.00018867,2]
[424412923,1780854647000,-33.98839206,0.00018867,2]
[424412928,1780854647000,-155.79609213,0.00018867,2]
[424412924,1780854647000,-151.0,0.00018867,2]
[424412925,1780854647000,-151.0,0.00018867,2]
[424412927,1780854647000,-151.0,0.00018867,2]
[424412929,1780854647000,-252.03,0.00018904,2]
[424412930,1780854647000,-1529.85169815,0.00019,2]
[424412926,1780854647000,-151.0,0.00018867,2]
[424412948,1780855330000,-1767.02945093,0.00014346,2]
[424412954,1780855636000,-886.56389683,0.0001378,2]
[424412955,1780855636000,-498.79618867,0.0001378,2]
[424412956,1780855648000,-749.55946425,0.0001378,2]
[424412990,1780855832000,-304.0,0.00013506,2]
[424412988,1780855832000,-630.63,0.00013506,2]
[424413008,1780855838000,-4065.37,0.00013506,2]
[424413009,1780855838000,-5000.0,0.00013642,2]
[424413010,1780855838000,-500.0,0.00013918,2]
[424413013,1780855838000,-500.0,0.00013918,2]
[424413012,1780855838000,-500.0,0.00013918,2]
[424413011,1780855838000,-612.39455094,0.00013918,2]
[424413015,1780855838000,-500.0,0.00013918,2]
[424413016,1780855838000,-500.0,0.00013918,2]
[424413019,1780855838000,-473.62822048,0.00013918,2]
[424413017,1780855838000,-359.39799759,0.00013918,2]
[424413014,1780855838000,-500.0,0.00013918,2]
[424413018,1780855838000,-500.0,0.00013918,2]
[424413038,1780855839000,-520.77393491,0.00014059,2]
[424413036,1780855839000,-502.50116527,0.00014059,2]
[424413040,1780855839000,-520.77393491,0.00014059,2]
[424413043,1780855839000,-520.77393491,0.00014059,2]
[424413046,1780855839000,-520.77393491,0.00014059,2]
[424413044,1780855839000,-520.77393491,0.00014059,2]
[424413045,1780855839000,-520.77393491,0.00014059,2]
[424413041,1780855839000,-520.77393491,0.00014059,2]
[424413049,1780855839000,-152.0,0.00016625,7]
[424413050,1780855839000,-152.0,0.00016625,7]
[424413060,1780855839000,-218.42,0.0001863,2]
[424413051,1780855839000,-160.0,0.00017435,2]
[424413052,1780855839000,-186.0,0.00017637,2]
[424413056,1780855839000,-152.0,0.00018462,2]
[424413047,1780855839000,-520.77393491,0.00014059,2]
[424413042,1780855839000,-520.77393491,0.00014059,2]
[424413039,1780855839000,-520.77393491,0.00014059,2]
[424413026,1780855839000,-502.50116527,0.00014059,2]
[424413037,1780855839000,-502.50116527,0.00014059,2]
[424413053,1780855839000,-1200.7364027,0.00018137,2]
[424413020,1780855839000,-3012.55299643,0.00013918,2]
[424413021,1780855839000,-502.50116527,0.00014059,2]
[424413022,1780855839000,-502.50116527,0.00014059,2]
[424413024,1780855839000,-502.50116527,0.00014059,2]
[424413025,1780855839000,-502.50116527,0.00014059,2]
[424413029,1780855839000,-502.50116527,0.00014059,2]
[424413027,1780855839000,-502.50116527,0.00014059,2]
[424413035,1780855839000,-502.50116527,0.00014059,2]
[424413031,1780855839000,-502.50116527,0.00014059,2]
[424413032,1780855839000,-502.50116527,0.00014059,2]
[424413028,1780855839000,-502.50116527,0.00014059,2]
[424413030,1780855839000,-502.50116527,0.00014059,2]
[424413034,1780855839000,-502.50116527,0.00014059,2]
[424413033,1780855839000,-502.50116527,0.00014059,2]
[424413048,1780855839000,-520.77393491,0.00014059,2]
[424413058,1780855839000,-181.151,0.00018568,2]
[424413023,1780855839000,-502.50116527,0.00014059,2]
[424413055,1780855839000,-215.18853108,0.0001842,2]
[424413079,1780855839000,-500.0,0.00019178,2]
[424413076,1780855839000,-500.0,0.00019178,2]
[424413081,1780855839000,-916.08,0.00019178,2]
[424413084,1780855839000,-1967.14,0.00019178,2]
[424413075,1780855839000,-500.0,0.00019178,2]
[424413085,1780855839000,-500.0,0.00019178,2]
[424413083,1780855839000,-544.45,0.00019178,2]
[424413078,1780855839000,-707.83,0.00019178,2]
[424413087,1780855839000,-1121.68,0.00019178,2]
[424413090,1780855839000,-500.0,0.00019178,2]
[424413088,1780855839000,-500.0,0.00019178,2]
[424413089,1780855839000,-500.0,0.00019178,2]
[424413092,1780855839000,-166.39551311,0.00019178,2]
[424413091,1780855839000,-500.0,0.00019178,2]
[424413093,1780855839000,-1826.08,0.00019178,2]
[424413094,1780855839000,-83.86864943,0.00019178,2]
[424413086,1780855839000,-500.0,0.00019178,2]
[424413082,1780855839000,-551.63,0.00019178,2]
[424413057,1780855839000,-151.0,0.00018567,2]
[424413080,1780855839000,-1578.89,0.00019178,2]
[424413077,1780855839000,-500.0,0.00019178,2]
[424413054,1780855839000,-316.829764,0.00018183,2]
[424413059,1780855839000,-506.32,0.00018568,3]
[424413062,1780855839000,-218.42,0.00018904,2]
[424413073,1780855839000,-500.0,0.00019178,2]
[424413061,1780855839000,-25627.65623105,0.000189,2]
[424413064,1780855839000,-35529.31277723,0.00019,2]
[424413068,1780855839000,-570.84,0.00019178,2]
[424413072,1780855839000,-500.0,0.00019178,2]
[424413063,1780855839000,-316.829764,0.00018949,2]
[424413065,1780855839000,-1000.0,0.00019078,2]
[424413071,1780855839000,-500.0,0.00019178,2]
[424413074,1780855839000,-500.0,0.00019178,2]
[424413067,1780855839000,-151.0,0.00019115,2]
[424413070,1780855839000,-500.0,0.00019178,2]
[424413066,1780855839000,-1000.0,0.00019078,4]
[424413069,1780855839000,-500.0,0.00019178,2]
[424413100,1780855841000,-89.32255231,0.00019178,2]
[424413099,1780855841000,-416.13135057,0.00019178,2]
[424413112,1780855843000,-500.0,0.00019178,2]
[424413106,1780855843000,-975.21744769,0.00019178,2]
[424413107,1780855843000,-1692.93,0.00019178,2]
[424413110,1780855843000,-670.6,0.00019178,2]
[424413111,1780855843000,-500.0,0.00019178,2]
[424413109,1780855843000,-500.0,0.00019178,2]
[424413108,1780855843000,-500.0,0.00019178,2]
[424413114,1780855843000,-500.0,0.00019178,2]
[424413118,1780855843000,-500.0,0.00019178,2]
[424413116,1780855843000,-520.11,0.00019178,2]
[424413121,1780855843000,-500.0,0.00019178,2]
[424413123,1780855843000,-800.55,0.00019178,2]
[424413119,1780855843000,-150.3156819,0.00019178,2]
[424413124,1780855843000,-189.27687041,0.00019178,2]
[424413122,1780855843000,-500.0,0.00019178,2]
[424413120,1780855843000,-500.0,0.00019178,2]
[424413115,1780855843000,-500.0,0.00019178,2]
[424413127,1780855844000,-500.0,0.00019178,2]
[424413125,1780855844000,-349.33312959,0.00019178,2]
[424413126,1780855844000,-555.55042811,0.00019178,2]
[424413129,1780855844000,-369.46644227,0.00019178,2]
[424413128,1780855844000,-500.65,0.00019178,2]
[424413149,1780855846000,-1790.04,0.00019178,2]
[424413132,1780855846000,-130.53355773,0.00019178,2]
[424413133,1780855846000,-765.09,0.00019178,2]
[424413134,1780855846000,-500.0,0.00019178,2]
[424413136,1780855846000,-882.98,0.00019178,2]
[424413135,1780855846000,-1337.83,0.00019178,2]
[424413137,1780855846000,-500.0,0.00019178,2]
[424413138,1780855846000,-500.0,0.00019178,2]
[424413139,1780855846000,-500.0,0.00019178,2]
[424413144,1780855846000,-500.0,0.00019178,2]
[424413143,1780855846000,-500.0,0.00019178,2]
[424413141,1780855846000,-500.0,0.00019178,2]
[424413142,1780855846000,-500.0,0.00019178,2]
[424413140,1780855846000,-872.26,0.00019178,2]
[424413147,1780855846000,-500.0,0.00019178,2]
[424413150,1780855846000,-500.0,0.00019178,2]
[424413146,1780855846000,-1014.24,0.00019178,2]
[424413148,1780855846000,-1130.56,0.00019178,2]
[424413151,1780855846000,-500.0,0.00019178,2]
[424413153,1780855846000,-2244.08,0.00019178,2]
[424413152,1780855846000,-500.0,0.00019178,2]
[424413145,1780855846000,-500.0,0.00019178,2]
[424413170,1780855847000,-500.0,0.00019178,2]
[424413169,1780855847000,-500.0,0.00019178,2]
[424413174,1780855847000,-979.44,0.00019178,2]
[424413165,1780855847000,-513.46,0.00019178,2]
[424413173,1780855847000,-500.0,0.00019178,2]
[424413179,1780855847000,-500.0,0.00019178,2]
[424413176,1780855847000,-500.0,0.00019178,2]
[424413177,1780855847000,-500.0,0.00019178,2]
[424413180,1780855847000,-909.66579237,0.00019178,2]
[424413181,1780855847000,-578.46,0.00019178,2]
[424413182,1780855847000,-500.0,0.00019178,2]
[424413171,1780855847000,-688.59,0.00019178,2]
[424413168,1780855847000,-956.44,0.00019178,2]
[424413159,1780855847000,-740.36,0.00019178,2]
[424413166,1780855847000,-630.7,0.00019178,2]
[424413164,1780855847000,-500.0,0.00019178,2]
[424413158,1780855847000,-500.0,0.00019178,2]
[424413162,1780855847000,-500.0,0.00019178,2]
[424413161,1780855847000,-584.49180857,0.00019178,2]
[424413160,1780855847000,-3487.18,0.00019178,2]
[424413156,1780855847000,-1247.49,0.00019178,2]
[424413157,1780855847000,-500.0,0.00019178,2]
[424413163,1780855847000,-566.99,0.00019178,2]
[424413154,1780855847000,-728.82,0.00019178,2]
[424413155,1780855847000,-500.0,0.00019178,2]
[424413183,1780855847000,-500.0,0.00019178,2]
[424413175,1780855847000,-535.48,0.00019178,2]
[424413186,1780855847000,-500.0,0.00019178,2]
[424413167,1780855847000,-500.0,0.00019178,2]
[424413187,1780855847000,-1180.32,0.00019178,2]
[424413178,1780855847000,-559.05,0.00019178,2]
[424413211,1780855847000,-934.63,0.00018986,2]
[424413213,1780855847000,-257.95088435,0.00019178,2]
[424413212,1780855847000,-294.9265536,0.00019178,2]
[424413208,1780855847000,-709.54,0.00019178,2]
[424413209,1780855847000,-1192.04,0.00019178,2]
[424413205,1780855847000,-500.0,0.00019178,2]
[424413207,1780855847000,-563.66,0.00019178,2]
[424413206,1780855847000,-500.0,0.00019178,2]
[424413204,1780855847000,-1608.03,0.00019178,2]
[424413210,1780855847000,-205.0734464,0.00019178,2]
[424413201,1780855847000,-556.89,0.00019178,2]
[424413203,1780855847000,-500.0,0.00019178,2]
[424413202,1780855847000,-761.81,0.00019178,2]
[424413199,1780855847000,-500.0,0.00019178,2]
[424413172,1780855847000,-1667.83,0.00019178,2]
[424413200,1780855847000,-500.0,0.00019178,2]
[424413185,1780855847000,-248.47471032,0.00019178,2]
[424413189,1780855847000,-531.55044038,0.00019178,2]
[424413184,1780855847000,-500.0,0.00019178,2]
[424413188,1780855847000,-730.68,0.00019178,2]
[424413190,1780855847000,-517.18,0.00019178,2]
[424413197,1780855847000,-500.0,0.00019178,2]
[424413192,1780855847000,-788.9,0.00019178,2]
[424413193,1780855847000,-881.37,0.00019178,2]
[424413194,1780855847000,-500.0,0.00019178,2]
[424413196,1780855847000,-1153.9,0.00019178,2]
[424413195,1780855847000,-505.47,0.00019178,2]
[424413198,1780855847000,-500.0,0.00019178,2]
[424413191,1780855847000,-1851.41,0.00019178,2]
[424413244,1780856750000,-287.96191861,0.00013866,14]
[424413245,1780856750000,-500.0,0.00014849,2]
[424413246,1780856750000,-500.0,0.00014849,2]
[424413247,1780856750000,-500.0,0.00014849,2]